bitfinex/quotes_ETHUSD_20250518
["timestamp","ask_amount","ask_price","bid_price","bid_amount"]
[1747600124972,4.19771601,2382.3,2381.8,18.79153276]
[1747600125170,0.0008,2382.4,2381.8,14.59303946]
[1747600125341,4.19766894,2382.3,2381.8,14.59303946]
[1747600125536,4.19788754,2382.2,2381.8,14.59303946]
[1747600125742,0.0008,2382.4,2381.8,18.79141837]
[1747600126071,0.0008,2382.4,2381.9,1.87914184]
[1747600126272,1.5461,2382.1,2381.5,12.501]
[1747600126648,4.19848698,2381.9,2381.5,12.501]
[1747600126854,0.0008,2382.4,2381.5,12.501]
[1747600127053,4.19817958,2382.0,2381.5,18.11277632]
[1747600127269,4.1984535,2381.9,2381.4,12.5]
[1747600127580,12.19762414,2382.3,2381.4,4.19919524]
[1747600127799,4.19851693,2381.8,2381.3,18.32672815]
[1747600127946,8.0,2382.3,2381.4,4.1991926]
[1747600128151,4.19832928,2381.9,2381.4,4.1991926]
[1747600128371,0.0008,2382.4,2381.9,1.6274]
[1747600128691,4.19788747,2382.2,2381.9,1.6274]
[1747600129051,0.0008,2382.4,2381.6,12.5]
[1747600129271,1.5469,2382.4,2381.5,1.6274]
[1747600129479,4.19783112,2382.2,2381.7,4.19858574]
[1747600129790,4.19817284,2382.0,2381.5,18.19434218]
[1747600130079,4.19798721,2382.1,2381.5,15.91045066]
[1747600130292,4.19782471,2382.2,2381.5,15.91045066]
[1747600130489,1.5469,2382.4,2381.5,20.10940831]
[1747600130678,4.19827411,2382.0,2381.5,20.10940831]
[1747600130852,4.19843994,2381.9,2381.5,15.91045066]
[1747600131048,4.19841807,2381.9,2381.5,1.6274]
[1747600131273,4.19851225,2381.8,2381.5,1.6274]
[1747600131477,4.19851225,2381.8,2381.3,16.56631103]
[1747600131695,4.19841208,2381.9,2381.4,4.19920853]
[1747600131893,0.0443033,2381.8,2381.2,1.6274]
[1747600132099,4.19949097,2381.3,2380.9,32.1294]
[1747600132298,4.1991376,2381.5,2381.0,4.19982836]
[1747600132457,4.19897418,2381.6,2381.0,4.19982836]
[1747600132792,4.19900822,2381.6,2380.9,36.43297412]
[1747600133002,1.5461,2381.7,2381.0,12.368]
[1747600133291,4.19870142,2381.7,2381.2,4.19945502]
[1747600133794,1.5461,2382.0,2381.2,2.07671946]
[1747600134093,4.19939689,2381.3,2381.0,12.368]
[1747600134401,8.0,2381.9,2380.9,18.135]
[1747600134402,4.19984195,2381.1,2380.9,18.135]
[1747600134615,8.0,2381.5,2380.9,18.135]
[1747600134815,4.19941089,2381.3,2380.9,18.135]
[1747600134973,8.0,2381.7,2380.9,18.135]
[1747600135310,4.19941585,2381.3,2380.9,18.135]
[1747600135904,4.19927164,2381.4,2380.9,22.33505126]
[1747600136078,4.19926888,2381.4,2380.9,22.3350485]
[1747600136281,8.0,2381.9,2380.9,20.74948017]
[1747600136488,8.0,2381.6,2380.9,18.135]
[1747600136694,4.19937106,2381.4,2380.9,18.135]
[1747600136988,16.53772167,2381.7,2381.0,4.1997822]
[1747600137192,4.19903422,2381.5,2380.9,22.33500416]
[1747600137418,4.19922242,2381.4,2380.9,22.33499706]
[1747600138533,4.19956512,2381.2,2380.9,18.135]
[1747600138828,16.53777686,2381.7,2380.9,18.135]
[1747600138829,4.19905947,2381.5,2380.9,18.135]
[1747600139033,4.19921469,2381.4,2380.9,18.135]
[1747600139592,4.19921469,2381.4,2380.9,22.33500131]
[1747600139814,4.19921469,2381.4,2381.0,12.327]
[1747600139815,4.19923434,2381.4,2381.0,12.327]
[1747600140012,12.323,2381.4,2381.1,4.19959547]
[1747600140413,12.323,2381.4,2381.0,19.9930109]
[1747600140604,16.52231609,2381.4,2381.0,12.327]
[1747600140799,4.19946373,2381.3,2380.9,18.135]
[1747600141003,4.19946546,2381.3,2381.0,12.327]
[1747600141516,4.19938688,2381.3,2381.0,12.327]
[1747600141715,12.323,2381.4,2380.9,18.135]
[1747600142014,12.323,2381.4,2380.9,30.463]
[1747600142212,4.19949083,2381.3,2380.9,30.463]
[1747600142409,12.323,2381.4,2380.9,30.463]
[1747600142613,4.19964546,2381.2,2380.9,30.463]
[1747600142823,4.19983905,2381.1,2380.9,18.135]
[1747600143024,4.199916,2381.0,2380.9,18.135]
[1747600143329,4.19938688,2381.3,2380.3,21.3834]
[1747600143624,4.20053438,2380.7,2380.5,12.328]
[1747600143784,12.306,2380.8,2380.3,1.5697]
[1747600143991,6.06,2381.2,2380.2,30.461]
[1747600144235,4.20073207,2380.6,2380.2,30.461]
[1747600144391,8.0,2380.8,2380.2,18.133]
[1747600144619,4.2003399,2380.8,2380.2,18.133]
[1747600144819,4.20095609,2380.5,2380.2,18.133]
[1747600145121,6.06,2380.4,2380.2,18.133]
[1747600146019,10.26112443,2380.4,2380.2,18.133]
[1747600146642,6.06,2380.4,2380.2,18.133]
[1747600147853,6.06,2380.4,2380.2,22.33424959]
[1747600148251,6.06,2380.4,2380.2,18.133]
[1747600148551,6.06,2380.4,2380.2,22.33426907]
[1747600148729,6.06,2380.4,2380.2,22.3341902]
[1747600149131,6.06,2380.4,2380.2,18.133]
[1747600149331,6.06,2380.4,2380.2,22.33424284]
[1747600149749,18.353,2380.5,2380.2,18.133]
[1747600149959,18.353,2380.5,2380.3,4.20099264]
[1747600149960,6.06,2380.5,2380.3,4.20099264]
[1747600150168,6.06,2381.1,2380.7,4.20034208]
[1747600150324,4.19938688,2381.3,2380.8,12.33]
[1747600150525,4.19968534,2381.2,2380.8,12.33]
[1747600150750,4.19968534,2381.2,2380.4,1.6562]
[1747600150751,4.19975593,2381.1,2380.6,4.20054105]
[1747600151056,4.1999969,2381.0,2380.7,12.331]
[1747600151244,4.19966936,2381.2,2380.7,16.53135764]
[1747600151554,4.2001604,2380.9,2380.7,12.331]
[1747600152053,4.19992839,2381.0,2380.7,12.331]
[1747600152455,12.27,2380.9,2380.5,4.20074301]
[1747600152652,4.20059479,2380.7,2380.4,12.331]
[1747600153158,12.27,2380.9,2380.4,16.53186643]
[1747600153455,5.84073418,2381.0,2380.4,16.2176118]
[1747600153456,4.20039065,2380.8,2380.4,16.2176118]
[1747600153656,4.20045871,2380.7,2380.2,18.133]
[1747600153824,4.20107026,2380.4,2380.3,12.331]
[1747600154154,4.20115111,2380.3,2380.2,18.133]
[1747600154722,4.20111961,2380.4,2380.2,12.073]
[1747600154955,4.20071361,2380.6,2380.2,12.073]
[1747600155157,12.259,2380.5,2380.2,12.073]
[1747600155532,4.20071361,2380.6,2380.2,12.073]
[1747600155855,12.256,2380.5,2380.2,16.27427331]
[1747600156053,4.20050485,2380.7,2380.2,16.27427331]
[1747600156256,12.253,2380.8,2380.4,1.5703]
[1747600156457,6.06,2380.7,2380.4,1.5703]
[1747600156653,6.06,2380.7,2379.9,32.1447]
[1747600156858,4.20094044,2380.5,2379.9,32.1447]
[1747600157175,4.20090619,2380.5,2380.0,4.2016006]
[1747600157375,10.26054427,2380.7,2380.0,8.41347176]
[1747600157576,0.0443033,2380.6,2379.8,1.5703]
[1747600157760,4.20123751,2380.3,2380.1,12.331]
[1747600158151,4.20100606,2380.4,2380.1,12.331]
[1747600158347,4.20088474,2380.5,2380.1,12.331]
[1747600158661,10.26052403,2380.7,2380.1,16.53241103]
[1747600158881,10.26048685,2380.7,2380.1,12.331]
[1747600159082,4.20108657,2380.4,2380.1,12.331]
[1747600159650,4.20089539,2380.5,2380.1,12.331]
[1747600159850,4.20101211,2380.4,2380.1,12.331]
[1747600160062,4.20087382,2380.5,2380.1,12.331]
[1747600160259,4.20065941,2380.6,2380.1,16.53243845]
[1747600160577,12.234,2380.5,2380.1,12.331]
[1747600160785,12.234,2380.5,2380.2,16.53332746]
[1747600160984,12.234,2380.5,2380.2,12.332]
[1747600161180,16.43482188,2380.5,2380.2,12.332]
[1747600161382,12.234,2380.5,2380.2,12.332]
[1747600161579,6.06,2380.4,2380.2,12.332]
[1747600162584,6.06,2380.4,2379.8,1.5703]
[1747600162766,6.06,2380.4,2380.1,12.332]
[1747600162767,10.26106954,2380.4,2380.1,12.332]
[1747600162966,6.06,2380.4,2380.1,12.332]
[1747600163374,6.06,2380.4,2380.3,4.20115111]
[1747600163585,6.06,2380.4,2380.1,12.332]
[1747600163981,6.06,2380.4,2380.2,4.20131389]
[1747600164297,6.06,2380.4,2380.2,4.20132761]
[1747600164481,6.06,2380.4,2380.2,2.07348023]
[1747600164802,4.19941037,2381.3,2380.4,4.20097462]
[1747600164956,22.47457093,2381.2,2380.3,5.80816245]
[1747600165309,6.06,2381.5,2380.5,1.6071]
[1747600165512,13.7704,2381.7,2380.8,4.20023624]
[1747600165786,13.7704,2381.7,2381.0,4.19979074]
[1747600165787,4.19898889,2381.6,2381.0,4.19979074]
[1747600165953,4.19913402,2381.5,2381.0,4.1999037]
[1747600166158,13.7704,2381.7,2381.1,12.331]
[1747600166656,4.19894807,2381.6,2381.1,12.331]
[1747600167071,4.19931104,2381.4,2380.9,4.20007588]
[1747600167268,4.19931104,2381.4,2381.0,12.331]
[1747600167477,4.19940405,2381.3,2380.8,4.20020995]
[1747600167675,4.19940405,2381.3,2380.9,12.331]
[1747600167999,4.19956237,2381.3,2380.6,12.331]
[1747600168154,4.19997331,2381.0,2380.6,12.331]
[1747600168505,4.19997331,2381.0,2380.4,23.94798845]
[1747600168506,12.198,2380.9,2380.4,19.7471]
[1747600168792,4.20036903,2380.8,2380.4,18.14]
[1747600168979,4.19987021,2381.1,2380.4,18.99341072]
[1747600169182,1.5584,2381.4,2380.4,18.99341072]
[1747600169183,16.39401506,2381.0,2380.5,4.20069574]
[1747600169359,4.20011051,2380.9,2380.4,22.34093322]
[1747600169696,4.20011051,2380.9,2380.4,18.14]
[1747600169992,0.31642818,2381.1,2380.4,18.14]
[1747600170290,12.189,2381.0,2380.6,4.20051406]
[1747600171090,1.5584,2381.4,2380.4,23.41241555]
[1747600171259,16.3834858,2381.3,2380.4,19.21146079]
[1747600171459,4.19973418,2381.2,2380.6,4.20053765]
[1747600171694,4.19976874,2381.1,2380.6,4.20053765]
[1747600171892,1.87646559,2381.4,2380.5,0.04200214]
[1747600172076,12.18,2381.3,2380.7,5.78812471]
[1747600172291,12.179,2381.4,2381.1,4.1996583]
[1747600172605,4.1492,2381.7,2381.0,12.194]
[1747600172814,1.6192,2381.7,2381.0,12.194]
[1747600172975,4.19906647,2381.5,2381.0,16.3938006]
[1747600173486,12.173,2381.4,2381.1,4.1997361]
[1747600173683,12.173,2381.4,2381.0,16.39384906]
[1747600174107,4.19895401,2381.6,2381.1,4.1997219]
[1747600174333,6.06,2381.5,2381.0,12.194]
[1747600174608,6.06,2381.5,2381.4,4.19921054]
[1747600174770,18.228,2382.0,2381.5,4.19898551]
[1747600175412,12.164,2381.9,2381.5,4.19903422]
[1747600175802,12.164,2381.9,2381.4,4.19915412]
[1747600176178,6.06,2382.0,2381.8,4.19840861]
[1747600176487,6.06,2382.0,2381.8,16.39240861]
[1747600176693,6.06,2382.0,2381.8,12.194]
[1747600177275,6.06,2382.2,2381.8,16.39244896]
[1747600177499,6.06,2382.2,2381.9,4.19823332]
[1747600177694,0.0008,2382.4,2381.9,5.81900044]
[1747600177903,12.153,2382.3,2382.0,4.19815281]
[1747600178122,12.153,2382.3,2382.0,4.1980724]
[1747600178311,12.153,2382.3,2381.9,5.8190044]
[1747600178312,12.153,2382.3,2382.1,4.19793583]
[1747600178477,12.153,2382.3,2382.0,4.19806177]
[1747600178816,4.19830225,2382.0,2381.4,16.39115965]
[1747600179014,1.6335,2382.2,2381.4,16.39115965]
[1747600179313,4.19898198,2381.6,2381.3,37.9507]
[1747600179481,16.34187279,2381.6,2381.3,37.9507]
[1747600179813,4.19919832,2381.5,2381.0,12.192]
[1747600180117,4.19948858,2381.3,2381.0,12.192]
[1747600180413,4.19948858,2381.3,2380.8,0.48965221]
[1747600180574,12.138,2381.4,2380.9,12.192]
[1747600180779,4.19967361,2381.2,2380.9,12.192]
[1747600180976,4.19947648,2381.3,2380.9,12.192]
[1747600181199,16.33728121,2381.4,2380.9,16.39203716]
[1747600181781,12.133,2381.3,2380.9,16.39202911]
[1747600181976,12.133,2381.3,2380.9,12.192]
[1747600182218,16.33247122,2381.3,2380.9,12.192]
[1747600182428,16.33242024,2381.3,2380.9,12.192]
[1747600182729,4.19957025,2381.2,2380.8,12.192]
[1747600183444,16.33245919,2381.3,2380.8,12.192]
[1747600183633,4.19964917,2381.2,2380.8,12.192]
[1747600183813,12.124,2381.2,2380.9,4.20000806]
[1747600184007,5.76815916,2381.6,2381.0,4.19980238]
[1747600184008,5.76823933,2381.6,2381.0,4.19980238]
[1747600184232,12.122,2381.5,2380.8,12.192]
[1747600184434,16.32109855,2381.5,2381.0,4.19979052]
[1747600184633,9.6657,2381.9,2381.1,4.19956568]
[1747600184934,12.12,2381.4,2381.0,4.19983124]
[1747600185231,12.12,2381.4,2380.8,12.192]
[1747600185232,12.12,2381.4,2380.8,16.39223369]
[1747600185435,12.12,2381.4,2380.9,4.19993284]
[1747600185733,16.31923895,2381.4,2380.9,4.19993284]
[1747600186231,16.31922086,2381.4,2380.9,4.19999686]
[1747600186434,16.31921938,2381.4,2380.9,4.19999696]
[1747600187542,12.12,2381.4,2380.8,12.192]
[1747600187741,12.12,2381.4,2381.0,4.19977283]
[1747600189139,12.12,2381.4,2381.0,4.19984501]
[1747600189523,16.31922618,2381.4,2380.9,4.20001478]
[1747600190344,12.12,2381.4,2380.8,16.39216125]
[1747600190550,1.629,2381.2,2380.3,1.5424]
[1747600190718,4.20082855,2380.5,2380.2,19.8137]
[1747600190919,16.2919922,2380.4,2380.2,19.8137]
[1747600191222,4.20115111,2380.3,2380.2,19.8137]
[1747600191423,16.29200643,2380.4,2380.2,19.8137]
[1747600191648,16.29200643,2380.4,2380.0,0.48965221]
[1747600192047,4.20119558,2380.3,2380.0,0.48965221]
[1747600192348,12.085,2380.2,2380.0,0.48965221]
[1747600192955,4.20150413,2380.1,2380.0,0.48965221]
[1747600193247,16.28636147,2380.2,2380.0,0.48965221]
[1747600193426,4.2016919,2380.0,2379.6,12.192]
[1747600193616,4.2015878,2380.1,2379.6,12.192]
[1747600194226,4.20150413,2380.1,2379.6,16.39437862]
[1747600194417,12.076,2380.0,2379.7,4.20211493]
[1747600194759,12.076,2380.0,2379.6,12.192]
[1747600195248,4.20200814,2379.9,2379.6,12.192]
[1747600195625,6.06,2379.8,2379.1,12.194]
[1747600195946,12.2020991,2379.8,2379.1,12.194]
[1747600196114,4.20224364,2379.7,2379.1,12.194]
[1747600196310,4.20254322,2379.6,2379.1,12.194]
[1747600196527,4.20254322,2379.6,2379.1,16.39726227]
[1747600196749,10.26197658,2379.9,2379.3,4.20277838]
[1747600196919,12.066,2379.8,2379.1,14.41674559]
[1747600197119,4.20229789,2379.7,2379.2,16.39799207]
[1747600197330,4.20239288,2379.6,2379.2,12.195]
[1747600197533,12.064,2379.6,2379.2,16.39808259]
[1747600197753,16.26640131,2379.6,2379.2,12.195]
[1747600198071,12.061,2379.6,2379.2,16.39798575]
[1747600198228,12.061,2379.6,2379.2,12.195]
[1747600198423,12.061,2379.6,2379.2,16.3980532]
[1747600198952,16.25925886,2379.7,2379.2,16.39804556]
[1747600199150,12.056,2379.7,2379.3,4.20280705]
[1747600199341,16.25706904,2379.8,2379.3,4.20280705]
[1747600199542,16.25706904,2379.8,2379.2,16.39799928]
[1747600199737,16.25706904,2379.8,2379.3,4.20289767]
[1747600200155,16.25706904,2379.8,2379.3,4.20279633]
[1747600200552,6.06,2379.7,2379.3,4.2028248]
[1747600200865,6.06,2379.7,2378.8,18.137]
[1747600201073,6.06,2379.7,2379.0,4.20328613]
[1747600201074,4.20265216,2379.5,2379.0,4.20328613]
[1747600201233,4.20276182,2379.4,2378.9,4.20353316]
[1747600201765,12.046,2379.3,2378.7,12.057]
[1747600201935,4.20344756,2379.0,2378.7,12.057]
[1747600202135,10.26362889,2378.9,2378.3,18.63065221]
[1747600202364,4.20399786,2378.7,2378.3,30.68965221]
[1747600202673,6.06,2378.6,2378.3,30.68965221]
[1747600202853,10.83451246,2378.4,2378.3,0.48965221]
[1747600203041,11.88960723,2378.4,2378.3,0.48965221]
[1747600203242,23.92960723,2378.4,2378.3,0.48965221]
[1747600203775,23.92960723,2378.4,2377.4,31.52434767]
[1747600203776,4.20495622,2378.2,2377.6,4.2058355]
[1747600203972,6.06,2378.4,2377.8,4.20556817]
[1747600204268,6.06,2378.4,2378.1,4.20496885]
[1747600204431,6.06,2378.5,2377.7,1.5743]
[1747600204634,6.06,2378.9,2378.7,4.20384719]
[1747600204861,12.033,2379.1,2378.5,13.6363]
[1747600205064,4.20371377,2378.9,2378.5,12.062]
[1747600205240,4.20402465,2378.7,2378.5,12.062]
[1747600205435,1.6251,2379.0,2378.5,12.062]
[1747600205638,0.0443033,2378.9,2378.5,12.062]
[1747600205838,4.2041537,2378.6,2378.5,12.062]
[1747600206075,4.03378788,2378.5,2378.0,16.26721385]
[1747600206372,12.029,2378.5,2378.1,4.20494492]
[1747600206668,4.20422269,2378.6,2378.2,4.20471141]
[1747600206669,12.028,2378.6,2378.2,4.20471141]
[1747600207471,1.94783892,2379.0,2378.1,6.40963869]
[1747600207472,7.6851,2379.3,2378.4,1.5743]
[1747600207689,6.06,2379.3,2379.0,4.20333852]
[1747600207841,0.0443033,2379.2,2378.6,1.5743]
[1747600208042,4.20372049,2378.9,2378.4,4.20450394]
[1747600208241,5.82914358,2378.7,2378.0,19.8137]
[1747600208463,1.6251,2378.7,2378.1,4.20494503]
[1747600208663,4.20433813,2378.5,2378.0,2.40192133]
[1747600208852,4.20433813,2378.5,2378.1,12.063]
[1747600209254,4.20464599,2378.4,2378.1,12.063]
[1747600209473,4.20424911,2378.6,2378.1,12.063]
[1747600209659,1.6251,2378.7,2378.2,4.20474438]
[1747600209867,12.015,2378.7,2378.3,4.20459478]
[1747600210175,12.015,2378.7,2378.2,5.84647694]
[1747600210337,12.015,2378.7,2378.3,4.20456054]
[1747600210540,12.015,2378.7,2378.1,12.063]
[1747600210740,12.015,2378.7,2377.5,4.20599548]
[1747600210741,4.20504477,2378.1,2377.7,12.063]
[1747600210936,5.7562328,2378.0,2377.5,19.8137]
[1747600211173,9.21041609,2377.9,2377.5,19.8137]
[1747600211373,12.008,2377.8,2377.5,19.8137]
[1747600211690,12.008,2377.8,2377.0,1.6417]
[1747600211840,16.21359988,2377.8,2377.1,4.20671648]
[1747600212042,12.006,2377.7,2377.6,4.20592193]
[1747600212264,12.005,2378.0,2377.6,5.84759736]
[1747600212472,12.005,2378.0,2377.6,1.6417]
[1747600212653,12.005,2378.0,2377.1,6.41860028]
[1747600212654,4.20560677,2377.8,2377.3,1.6417]
[1747600212859,16.21021984,2378.0,2377.5,4.2059816]
[1747600212860,12.005,2378.0,2377.5,4.2059816]
[1747600213055,12.005,2378.0,2377.3,5.84809704]
[1747600213387,4.205472,2377.9,2377.4,4.20621721]
[1747600213569,4.205472,2377.9,2377.3,5.84806961]
[1747600213570,11.999,2377.8,2377.6,4.20577797]
[1747600213877,12.0,2378.0,2377.6,4.20577797]
[1747600214099,12.0,2378.0,2377.5,4.20602068]
[1747600214256,4.20546416,2377.9,2377.3,5.84807652]
[1747600214448,12.0,2378.0,2377.4,4.20617895]
[1747600214650,4.20540664,2377.9,2377.4,4.20617895]
[1747600214875,4.20565539,2377.8,2377.3,1.6417]
[1747600215192,4.20565539,2377.8,2377.1,6.41864201]
[1747600215193,4.20593445,2377.6,2377.1,12.066]
[1747600215375,4.20613226,2377.5,2377.1,12.066]
[1747600215576,16.19932474,2377.4,2377.1,12.066]
[1747600215790,16.19932474,2377.4,2376.7,1.6092]
[1747600215791,16.99790523,2377.4,2376.7,1.6092]
[1747600216083,16.99790523,2377.4,2376.6,12.066]
[1747600216084,4.20707698,2377.0,2376.4,1.6092]
[1747600216284,0.30744526,2377.0,2376.3,19.8137]
[1747600216489,4.20804578,2376.4,2376.3,19.8137]
[1747600216663,11.988,2376.4,2376.2,4.20830264]
[1747600216869,11.99,2376.5,2376.4,4.20788753]
[1747600217203,6.06,2377.2,2376.7,5.81670523]
[1747600217395,11.987,2377.4,2377.0,4.20685295]
[1747600217558,11.987,2377.4,2376.8,16.27624863]
[1747600217763,4.20654127,2377.3,2376.8,16.27624863]
[1747600217976,4.20707454,2377.0,2376.7,1.6092]
[1747600218194,11.987,2377.4,2376.6,12.069]
[1747600218382,4.20712558,2377.0,2376.4,1.6092]
[1747600218587,11.987,2377.4,2376.4,13.6782]
[1747600218793,4.20708903,2377.0,2376.4,16.27694967]
[1747600218967,4.20718386,2376.9,2376.4,16.27694967]
[1747600219162,11.981,2376.8,2376.4,12.069]
[1747600219663,11.981,2376.8,2375.8,37.9677]
[1747600219664,1.541,2376.7,2375.8,18.154]
[1747600219862,9.541,2376.7,2375.6,21.3151]
[1747600220058,1.541,2376.7,2375.6,21.3151]
[1747600220294,4.20860302,2376.1,2375.6,25.52455951]
[1747600220491,11.977,2376.0,2375.6,21.3151]
[1747600220692,16.18584635,2376.0,2375.5,4.20963171]
[1747600221195,1.541,2376.1,2375.4,12.56065221]
[1747600221407,11.973,2375.9,2375.4,12.56065221]
[1747600221575,4.20937535,2375.7,2375.3,1.5014]
[1747600221768,4.20937535,2375.7,2375.2,16.281099]
[1747600222303,4.20936721,2375.7,2375.2,4.21016092]
[1747600222514,11.973,2375.9,2375.0,19.6624]
[1747600222813,4.20910851,2375.8,2375.0,1.5014]
[1747600223118,4.20910851,2375.8,2374.6,21.3151]
[1747600223119,1.541,2375.3,2374.6,21.3151]
[1747600223283,12.21105823,2374.7,2374.6,19.8137]
[1747600223613,5.75156267,2375.0,2374.6,20.16524662]
[1747600223769,12.2107036,2374.9,2374.7,0.35153181]
[1747600223969,4.21088091,2374.8,2374.7,0.35153181]
[1747600224210,12.2107036,2374.9,2374.7,0.35153181]
[1747600224211,8.0,2374.9,2374.7,0.35153181]
[1747600224495,1.541,2375.0,2374.7,0.35153181]
[1747600224712,1.6317,2375.3,2374.9,4.21059145]
[1747600224881,1.6317,2375.3,2374.7,4.56243977]
[1747600224882,11.962,2375.0,2374.8,4.21085085]
[1747600225507,11.959,2375.0,2374.8,4.21088091]
[1747600225665,12.20965246,2375.5,2374.7,0.35153181]
[1747600226037,4.21088091,2374.8,2374.7,0.35153181]
[1747600226181,11.96,2374.8,2374.7,0.35153181]
[1747600226497,11.958,2374.8,2374.7,0.35153181]
[1747600226876,4.2099173,2375.4,2374.7,6.15436305]
[1747600227192,11.956,2375.3,2374.9,4.21060548]
[1747600227389,4.21040204,2375.1,2374.7,1.94333181]
[1747600227596,11.956,2375.3,2374.5,12.077]
[1747600227805,4.2099423,2375.4,2374.5,12.077]
[1747600227974,11.952,2375.2,2374.8,4.21088091]
[1747600228168,1.6317,2375.5,2375.0,4.21050669]
[1747600228374,11.951,2375.4,2374.8,0.89717938]
[1747600228692,4.25432585,2375.3,2374.5,16.2882866]
[1747600228890,11.951,2375.4,2374.5,16.2882866]
[1747600228891,16.16088692,2375.4,2374.7,4.21105823]
[1747600229091,4.21001544,2375.3,2374.8,4.21088091]
[1747600229289,5.84146859,2375.5,2374.8,4.21088091]
[1747600229504,11.948,2375.4,2374.9,4.2105987]
[1747600229674,6.28522545,2375.7,2374.9,0.84214796]
[1747600229875,11.947,2375.6,2375.0,1.5172]
[1747600230076,11.947,2375.6,2375.0,5.72772052]
[1747600230077,4.20964007,2375.5,2375.0,5.72772052]
[1747600230400,4.20984125,2375.4,2375.0,1.5172]
[1747600230576,4.20984125,2375.4,2374.7,22.38593836]
[1747600230577,4.21035107,2375.1,2374.7,19.6922]
[1747600230777,4.2108341,2374.9,2374.7,1.5172]
[1747600230982,4.21052631,2375.0,2374.4,1.5172]
[1747600231186,1.6843033,2375.1,2374.4,1.5172]
[1747600231485,4.21082513,2374.9,2374.4,1.5172]
[1747600231805,4.21063232,2375.0,2374.4,1.5172]
[1747600232008,4.21131191,2374.6,2374.2,11.949]
[1747600232170,4.21159029,2374.4,2373.6,19.8137]
[1747600232373,4.21234184,2374.0,2373.6,20.16539472]
[1747600232570,8.06783405,2374.8,2373.6,2.94127543]
[1747600232777,4.21153583,2374.5,2373.7,0.04212779]
[1747600232977,8.06783405,2374.8,2373.9,1.5172]
[1747600233192,11.935,2374.7,2373.9,1.5172]
[1747600233384,4.21169386,2374.4,2373.9,13.4672]
[1747600233598,4.21123557,2374.6,2373.9,17.67966315]
[1747600233912,4.21158906,2374.5,2373.9,17.67962799]
[1747600234113,4.2116311,2374.4,2373.9,17.67962799]
[1747600234406,4.21148652,2374.5,2374.0,4.21221038]
[1747600234609,4.21162944,2374.4,2373.9,13.4672]
[1747600234812,4.21149123,2374.5,2373.9,17.67963957]
[1747600235005,0.0443033,2374.4,2373.9,13.4672]
[1747600235207,12.21127798,2374.6,2373.9,11.95]
[1747600235409,13.58827851,2374.8,2374.0,4.21219013]
[1747600235615,16.136537,2374.5,2374.0,4.21221267]
[1747600235796,16.136537,2374.5,2373.9,16.16240914]
[1747600235988,4.21186988,2374.3,2373.9,11.95]
[1747600236190,4.21229991,2374.0,2373.9,11.95]
[1747600236512,1.5551,2374.2,2373.7,4.21273543]
[1747600236675,1.5551,2374.2,2373.6,5.85539298]
[1747600236877,4.21215135,2374.1,2373.6,5.85539298]
[1747600237108,4.2123551,2374.0,2373.6,1.6424]
[1747600237317,11.921,2373.9,2373.5,4.21308983]
[1747600237675,11.921,2373.9,2373.3,1.6424]
[1747600237881,11.921,2373.9,2373.3,5.85582435]
[1747600237882,16.13356545,2373.9,2373.3,5.85582435]
[1747600238314,4.21265806,2373.8,2373.3,5.85582435]
[1747600238888,11.921,2373.9,2373.3,5.85582435]
[1747600238889,16.13356123,2373.9,2373.3,5.85582435]
[1747600239087,1.5551,2374.2,2373.3,5.66225393]
[1747600239318,8.0,2374.6,2373.9,4.21233361]
[1747600239319,1.5757,2374.5,2373.9,4.21233361]
[1747600239520,11.913,2374.1,2373.9,4.21233361]
[1747600239718,16.12514944,2374.1,2373.6,4.21290709]
[1747600239920,11.913,2374.1,2373.8,4.2124775]
[1747600240130,1.5757,2374.5,2373.5,4.76318396]
[1747600240311,10.99903242,2374.0,2373.0,1.5556]
[1747600240485,8.0,2373.9,2373.0,1.5556]
[1747600240810,16.12075646,2373.8,2373.1,18.177]
[1747600241011,16.12075646,2373.8,2373.1,22.39074657]
[1747600241217,16.12075646,2373.8,2373.2,4.25585091]
[1747600241218,11.908,2373.8,2373.2,4.25585091]
[1747600241418,11.908,2373.8,2373.3,4.21351904]
[1747600241618,11.908,2373.8,2373.1,26.40226638]
[1747600241913,16.11739966,2374.0,2373.4,4.2132111]
[1747600242217,4.21276317,2373.8,2373.2,4.21366711]
[1747600242517,5.78825957,2373.9,2373.2,16.16864231]
[1747600242703,11.905,2374.0,2373.4,4.21322829]
[1747600242909,16.11739055,2374.0,2373.4,4.21322829]
[1747600243209,11.9,2373.9,2373.6,4.21287883]
[1747600243406,4.21274177,2373.8,2373.3,4.21344131]
[1747600243618,13.4757,2373.9,2373.2,4.21368653]
[1747600243619,4.21283422,2373.7,2373.2,4.21368653]
[1747600243987,4.21301673,2373.6,2373.1,22.39082294]
[1747600244422,4.21270323,2373.8,2373.1,22.39082294]
[1747600244423,4.2128874,2373.7,2373.2,4.21366189]
[1747600244617,4.21270323,2373.8,2373.1,22.18854244]
[1747600244618,11.894,2373.8,2373.1,22.18854244]
[1747600244827,4.21310194,2373.6,2373.1,26.40234765]
[1747600244998,4.21321168,2373.5,2373.1,18.177]
[1747600245196,11.894,2373.8,2373.1,22.39089213]
[1747600245197,4.213099,2373.6,2373.1,22.39089213]
[1747600245597,5.78854526,2373.7,2373.1,18.177]
[1747600245916,16.10314803,2373.6,2373.1,4.21388677]
[1747600246526,4.21319345,2373.5,2373.0,4.21398982]
[1747600246694,9.5757,2374.0,2373.0,1.07131346]
[1747600246895,16.0995616,2373.9,2373.4,5.7688667]
[1747600247095,11.886,2374.1,2373.4,13.5136]
[1747600247342,16.09729394,2374.1,2373.5,4.21307214]
[1747600247622,1.5757,2374.5,2373.5,4.21318727]
[1747600247793,4.21220428,2374.1,2373.6,5.98556222]
[1747600248126,4.21220428,2374.1,2373.5,4.21318727]
[1747600248127,8.0,2374.4,2373.3,18.189]
[1747600248334,4.2129138,2373.7,2373.2,4.21363849]